bitfinex-derivatives/quotes_ETHF0:USTF0_20250114
["timestamp","ask_amount","ask_price","bid_price","bid_amount"]
[1736825608702,0.31553,3170.6,3170.5,0.4909]
[1736825608904,0.31553,3170.6,3170.3,3.80242272]
[1736825609094,0.4807,3171.1,3170.4,0.31555]
[1736825609295,0.4807,3171.1,3170.7,0.31552]
[1736825609497,0.4807,3171.1,3170.8,0.4654]
[1736825609697,0.31552,3170.8,3170.4,0.31555]
[1736825609898,0.31552,3170.8,3170.3,4.58338272]
[1736825610100,3.2078,3170.9,3170.3,4.26782272]
[1736825610398,0.31552,3170.8,3170.4,0.31555]
[1736825610600,0.31552,3170.8,3170.3,4.26782272]
[1736825610601,0.31554,3170.6,3170.3,0.4654]
[1736825610905,0.4942,3170.5,3170.3,0.4654]
[1736825611201,0.4942,3170.5,3170.3,0.78096]
[1736825611996,0.4942,3170.5,3170.4,0.31555]
[1736825612402,3.52331,3170.9,3170.6,0.31553]
[1736825612599,0.31551,3170.8,3170.7,0.4625]
[1736825613295,0.31552,3170.7,3170.5,0.31554]
[1736825613500,0.31552,3170.7,3170.4,0.31555]
[1736825614998,0.24156651,3170.9,3170.4,0.31555]
[1736825615203,0.31554,3170.6,3170.3,3.76798272]
[1736825615702,0.31552,3170.8,3170.5,0.31554]
[1736825617003,3.44936651,3170.9,3170.3,3.45242272]
[1736825617004,1.29039,3171.1,3170.7,0.31552]
[1736825617202,1.29039,3171.1,3170.6,2.84995272]
[1736825617203,0.3155,3171.0,3170.6,2.84995272]
[1736825618005,3.2078,3170.9,3170.3,3.45242272]
[1736825618208,0.31555,3170.5,3170.3,0.918]
[1736825618614,3.2078,3170.9,3170.3,0.918]
[1736825618808,0.31553,3170.7,3170.4,0.31555]
[1736825619608,3.2078,3170.9,3170.3,3.45242272]
[1736825619816,0.31551,3170.8,3170.5,0.31554]
[1736825620918,0.31553,3170.7,3170.3,3.76798272]
[1736825621120,0.31553,3170.6,3170.3,0.918]
[1736825621315,3.2078,3170.9,3170.3,0.918]
[1736825621725,0.31554,3170.6,3170.3,1.23356]
[1736825622216,0.23513651,3170.8,3170.3,0.918]
[1736825622422,0.31555,3170.4,3170.3,0.4654]
[1736825622924,1.28285,3170.5,3170.3,0.4654]
[1736825624930,0.31555,3170.4,3170.3,0.4654]
[1736825626016,0.31557,3170.3,3170.1,0.31558]
[1736825626222,0.9673,3170.5,3169.4,2.53442272]
[1736825626223,6.95139174,3170.5,3169.4,2.53442272]
[1736825626526,6.95139174,3170.5,3169.3,4.78946]
[1736825626527,0.31563,3169.6,3169.3,4.78946]
[1736825626917,0.31563,3169.6,3169.4,0.31565]
[1736825627121,0.4682,3170.0,3169.4,0.31565]
[1736825627423,0.31563,3169.7,3169.4,0.31565]
[1736825628120,0.31562,3169.8,3169.5,0.31564]
[1736825628323,0.76531,3169.9,3169.4,0.31565]
[1736825628624,3.2078,3170.1,3170.0,0.31559]
[1736825628928,1.10852274,3171.0,3170.0,8.80042272]
[1736825629128,0.4804,3171.0,3170.7,0.31552]
[1736825629328,0.31549,3171.1,3170.7,0.31551]
[1736825629525,3.2078,3171.4,3170.8,1.4411]
[1736825629720,1.58381444,3171.6,3171.2,3.2078]
[1736825629721,1.10411444,3171.6,3171.2,3.2078]
[1736825630022,3.2078,3171.9,3171.4,2.53442272]
[1736825630221,0.31542,3171.8,3171.5,0.4532]
[1736825631317,0.31543,3171.7,3171.2,0.31547]
[1736825631521,0.31546,3171.4,3170.9,0.3155]
[1736825631724,0.31546,3171.4,3170.9,0.7772]
[1736825631927,0.80517,3171.3,3170.9,0.7772]
[1736825632229,0.31549,3171.1,3170.8,0.9879]
[1736825632429,0.80517,3171.3,3170.9,0.3155]
[1736825632624,0.31548,3171.2,3170.9,0.3155]
[1736825633125,0.4897,3171.3,3170.8,1.4496]
[1736825633325,0.80517,3171.3,3170.8,1.4496]
[1736825633525,0.80517,3171.3,3170.9,0.3155]
[1736825633928,0.80517,3171.3,3170.3,3.52336]
[1736825633929,0.31553,3170.7,3170.3,3.52336]
[1736825634125,2.53442272,3170.5,3169.5,3.2078]
[1736825634425,3.2078,3170.3,3169.5,3.2078]
[1736825634730,0.31559,3170.1,3169.6,0.31563]
[1736825634934,0.31558,3170.2,3169.7,0.31562]
[1736825635136,3.2078,3170.3,3169.5,3.2078]
[1736825635321,0.31558,3170.2,3169.6,0.31563]
[1736825635527,0.72243436,3170.4,3170.1,3.2078]
[1736825635731,0.4897,3170.4,3170.0,0.31559]
[1736825636826,0.80526,3170.4,3169.9,1.2624]
[1736825637024,0.4897,3170.4,3169.9,0.9468]
[1736825637228,0.4897,3170.4,3170.1,0.31558]
[1736825637427,0.4897,3170.4,3170.2,0.31557]
[1736825637630,0.4897,3170.4,3170.1,3.52338]
[1736825637836,3.16243815,3171.0,3170.1,3.52338]
[1736825637837,0.29583681,3170.9,3170.2,2.53442272]
[1736825638130,0.31549,3171.1,3170.6,0.31553]
[1736825638329,0.4625,3171.2,3170.7,0.4653]
[1736825638524,0.4853,3171.4,3170.7,0.4653]
[1736825638525,0.80076,3171.4,3170.7,0.9172]
[1736825638839,0.31547,3171.3,3170.8,0.31551]
[1736825639136,0.80076,3171.4,3170.9,0.3155]
[1736825639432,0.31543,3171.7,3171.2,0.31547]
[1736825639630,0.31545,3171.5,3171.1,2.53442272]
[1736825639836,0.31542,3171.7,3170.9,3.5233]
[1736825640138,2.53442272,3171.5,3170.9,3.2078]
[1736825640433,0.31544,3171.6,3171.1,0.31548]
[1736825640621,0.31543,3171.7,3171.0,0.31549]
[1736825640828,0.31544,3171.6,3171.1,0.31548]
[1736825641136,0.31545,3171.5,3170.9,3.2078]
[1736825641342,6.69002272,3171.8,3170.9,3.2078]
[1736825641934,0.31547,3171.3,3170.9,3.2078]
[1736825642729,6.69002272,3171.8,3170.9,3.2078]
[1736825642730,0.23393404,3171.5,3170.9,3.2078]
[1736825642928,0.23393404,3171.5,3171.2,0.31547]
[1736825643132,0.23393404,3171.5,3171.1,0.31548]
[1736825643431,0.31548,3171.2,3170.9,3.2078]
[1736825643631,2.76835676,3171.5,3170.9,3.2078]
[1736825643827,2.53442272,3171.2,3170.5,3.2078]
[1736825644134,0.31555,3170.5,3170.1,3.7014]
[1736825644345,0.31555,3170.5,3170.1,0.4936]
[1736825644639,0.4494,3170.8,3170.1,0.4936]
[1736825645035,0.4494,3170.8,3170.3,2.53442272]
[1736825645238,0.76492,3170.8,3170.3,2.84998272]
[1736825645934,0.76492,3170.8,3170.3,2.53442272]
[1736825645935,0.4494,3170.8,3170.3,2.53442272]
[1736825646140,3.2078,3170.9,3170.3,2.53442272]
[1736825646437,0.31551,3170.9,3170.4,0.31555]
[1736825646830,0.31551,3170.9,3170.5,0.4562]
[1736825647232,0.31552,3170.8,3170.5,0.4562]
[1736825647433,0.4706,3171.1,3170.5,0.4562]
[1736825647939,0.31551,3170.9,3170.5,0.4562]
[1736825648237,4.28493087,3171.4,3170.5,0.4562]
[1736825648437,0.31546,3171.3,3170.9,2.84992272]
[1736825648640,3.6572,3171.4,3170.8,1.266]
[1736825648641,0.31548,3171.2,3170.8,1.266]
[1736825648938,0.3155,3170.9,3170.8,1.266]
[1736825649135,3.6572,3171.4,3170.8,1.266]
[1736825649333,0.3155,3171.0,3170.8,1.266]
[1736825650039,3.2078,3171.3,3170.8,1.266]
[1736825650240,0.31547,3171.2,3170.8,1.266]
[1736825650442,3.2078,3171.3,3170.8,1.7251]
[1736825650637,0.3155,3171.0,3170.8,1.7251]
[1736825651140,3.2078,3171.3,3170.8,1.7251]
[1736825651141,0.31549,3171.1,3170.8,1.7251]
[1736825651743,0.31548,3171.2,3170.8,2.04061]
[1736825652044,3.2078,3171.3,3170.8,1.7251]
[1736825652342,0.31549,3171.1,3170.8,1.7251]
[1736825653636,3.2078,3171.3,3170.8,1.7251]
[1736825654046,0.3155,3171.0,3170.8,1.7251]
[1736825654939,0.3155,3170.9,3170.8,0.4591]
[1736825655144,0.31552,3170.8,3170.6,1.278]
[1736825655843,0.31553,3170.6,3170.5,0.4562]
[1736825656044,0.78869,3171.2,3170.0,5.74222272]
[1736825656045,0.4707,3170.7,3170.0,5.74222272]
[1736825656344,0.31558,3170.2,3170.0,4.9617]
[1736825657244,0.31558,3170.1,3170.0,4.9617]
[1736825657443,0.31558,3170.1,3170.0,3.2078]
[1736825658542,0.31562,3169.8,3169.4,3.78277272]
[1736825658742,0.33196888,3170.5,3169.7,2.53442272]
[1736825658942,0.31558,3170.2,3169.8,0.31561]
[1736825659138,0.4591,3170.5,3169.8,0.31561]
[1736825659344,0.31556,3170.4,3170.0,0.31559]
[1736825659553,0.4591,3170.5,3169.7,2.53442272]
[1736825660048,0.31558,3170.2,3169.7,2.85004272]
[1736825660438,0.31559,3170.1,3169.7,2.85004272]
[1736825661046,0.4591,3170.5,3169.7,2.53442272]
[1736825661345,0.4591,3170.5,3169.7,2.85004272]
[1736825661550,0.31559,3170.1,3169.7,2.85004272]
[1736825661851,0.31559,3170.1,3169.7,2.53442272]
[1736825662251,0.4591,3170.5,3169.7,2.53442272]
[1736825662457,0.31558,3170.2,3169.7,2.53442272]
[1736825662642,0.4591,3170.5,3169.7,2.85004272]
[1736825662846,0.31559,3170.1,3169.7,2.53442272]
[1736825663052,0.3156,3170.0,3169.7,2.53442272]
[1736825664646,2.53442272,3170.1,3169.5,3.2078]
[1736825664850,3.2078,3170.3,3169.5,3.2078]
[1736825665048,0.31563,3169.6,3169.5,3.2078]
[1736825665751,0.31561,3169.8,3169.5,3.2078]
[1736825665954,0.31561,3169.8,3169.6,0.9732]
[1736825666152,0.31562,3169.7,3169.6,0.4746]
[1736825666553,3.2078,3170.3,3169.5,3.2078]
[1736825666554,0.31563,3169.6,3169.5,3.2078]
[1736825667656,0.31562,3169.8,3169.5,3.2078]
[1736825667851,3.2078,3170.3,3169.7,2.53442272]
[1736825668551,0.3156,3170.0,3169.7,2.53442272]
[1736825668755,0.3156,3170.0,3169.7,2.85004272]
[1736825669654,0.4591,3170.5,3169.7,2.85004272]
[1736825669851,0.3156,3169.9,3169.7,2.85004272]
[1736825670047,3.2078,3170.3,3169.7,4.12904272]
[1736825670251,0.3156,3170.0,3169.8,0.4743]
[1736825670553,3.2078,3170.3,3169.8,0.4743]
[1736825670758,2.53442272,3171.0,3170.1,2.53442272]
[1736825670759,0.29583681,3170.9,3170.1,2.53442272]
[1736825670957,0.31546,3171.4,3170.8,5.74222272]
[1736825671162,3.6754,3172.0,3171.3,2.53442272]
[1736825671656,6.99832272,3172.0,3171.0,2.53442272]
[1736825671859,0.31546,3171.4,3171.0,2.53442272]
[1736825672060,0.31546,3171.4,3171.1,0.31548]
[1736825672260,0.31547,3171.3,3171.0,2.84991272]
[1736825672559,0.31548,3171.2,3171.0,2.53442272]
[1736825672753,3.2078,3171.6,3171.0,2.53442272]
[1736825672949,0.31549,3171.0,3170.8,3.2078]
[1736825673149,0.31552,3170.7,3170.6,1.278]
[1736825676166,0.31552,3170.8,3170.6,1.278]
[1736825677357,0.4676,3170.9,3170.3,0.9598]
[1736825677562,0.4676,3170.9,3170.3,2.2378]
[1736825677861,0.31553,3170.7,3170.3,2.2378]
[1736825678364,0.31553,3170.7,3170.3,2.55336]
[1736825679562,0.31554,3170.6,3170.3,2.2378]
[1736825679957,0.31554,3170.6,3170.3,0.9598]
[1736825682064,0.31554,3170.6,3170.3,1.27536]
[1736825682266,0.31554,3170.6,3170.4,0.4608]
[1736825682566,3.2078,3170.7,3170.4,0.4608]
[1736825682767,0.31554,3170.5,3170.4,0.4608]
[1736825682968,3.2078,3170.7,3170.4,0.4608]
[1736825683267,3.52333,3170.7,3170.4,0.4608]
[1736825683465,3.2078,3170.7,3170.4,2.99522272]
[1736825683769,0.31554,3170.5,3170.4,0.4608]
[1736825683973,3.2078,3170.7,3170.2,1.278]
[1736825684161,3.2078,3170.7,3170.0,0.9687]
[1736825684463,0.4551,3170.8,3170.0,0.9687]
[1736825684464,0.31558,3170.1,3170.0,0.9687]
[1736825685762,0.31562,3169.8,3169.5,2.85006272]
[1736825685960,0.31562,3169.8,3169.7,1.274]
[1736825686166,0.31561,3169.9,3169.7,1.274]
[1736825687170,0.9299,3170.2,3169.6,0.4831]
[1736825687367,0.31562,3169.7,3169.6,0.4831]
[1736825687866,1.71513681,3170.2,3169.6,0.4831]
[1736825688067,0.31562,3169.7,3169.6,0.4831]
[1736825688364,0.31564,3169.5,3169.4,3.2078]
[1736825689070,0.80884,3169.5,3169.4,3.2078]
[1736825689374,0.80884,3169.5,3168.2,2.05442]
[1736825689375,3.701,3169.5,3168.5,0.31574]
[1736825689666,0.31571,3168.9,3168.4,0.31574]
[1736825690466,0.31572,3168.8,3168.3,2.56496]
[1736825690667,0.31573,3168.7,3168.3,2.56496]
[1736825690967,0.31574,3168.6,3168.3,2.2492]
[1736825691262,3.2078,3169.1,3168.3,2.2492]
[1736825691660,2.53442272,3169.0,3168.3,0.9742]
[1736825691873,0.4564,3168.9,3168.2,3.2078]
[1736825692269,0.4638,3168.8,3168.2,3.2078]
[1736825692572,0.31574,3168.6,3168.1,0.31578]
[1736825692763,0.31573,3168.7,3168.2,2.85019272]
[1736825692968,0.31572,3168.8,3168.4,0.31575]
[1736825693371,0.77211,3168.9,3168.4,0.31575]
[1736825693571,0.77211,3168.9,3168.3,0.9522]
[1736825693774,0.7721,3168.9,3168.3,0.9522]
[1736825693973,0.7721,3168.9,3168.4,0.31575]
[1736825694265,3.7046,3169.1,3168.3,0.9522]
[1736825694465,0.4968,3169.1,3168.3,0.9522]
[1736825694672,0.3157,3168.9,3168.4,0.31574]
[1736825694865,3.7046,3169.1,3168.3,0.9522]
[1736825695067,0.31572,3168.8,3168.4,0.31575]
[1736825695269,3.7046,3169.1,3168.3,0.9522]
[1736825695665,3.7046,3169.1,3168.4,0.31575]
[1736825695666,0.31572,3168.8,3168.4,0.31575]
[1736825695973,3.7046,3169.1,3168.3,0.9522]
[1736825696171,4.02029,3169.1,3168.7,0.31572]
[1736825696763,2.53442272,3169.0,3168.3,0.9522]
[1736825697373,3.52352,3168.7,3168.3,1.26796]
[1736825697874,0.31573,3168.6,3168.3,0.9522]
[1736825698074,0.80173,3168.6,3168.3,0.9522]
[1736825698472,0.486,3168.6,3168.3,1.26796]
[1736825698676,0.80173,3168.6,3168.3,0.9522]
[1736825698874,0.486,3168.6,3168.3,0.9522]
[1736825699171,0.80173,3168.6,3168.3,0.9522]
[1736825699374,0.486,3168.6,3168.3,0.9522]
[1736825699871,0.486,3168.6,3167.7,3.2078]
[1736825700175,0.31577,3168.2,3167.5,0.31584]
[1736825700370,0.31577,3168.2,3167.7,0.31582]
[1736825700677,3.2078,3168.3,3167.8,0.452]
[1736825700976,0.3158,3167.9,3167.8,0.4904]
[1736825701272,0.31582,3167.8,3167.6,3.2078]
[1736825701664,0.31582,3167.8,3167.5,0.452]
[1736825701865,0.31584,3167.5,3167.4,0.4904]
[1736825702274,0.4807,3167.7,3167.1,4.4828]
[1736825702275,0.31587,3167.3,3167.1,3.2078]
[1736825702472,0.31587,3167.2,3167.1,3.2078]
[1736825702671,0.4807,3167.7,3167.1,3.2078]
[1736825703780,0.31587,3167.3,3167.1,3.2078]
[1736825704575,0.4807,3167.7,3167.1,3.2078]
[1736825704777,0.31585,3167.5,3167.2,0.9145]
[1736825704979,0.31586,3167.4,3167.2,0.9145]
[1736825705168,0.4807,3167.7,3167.2,0.9145]
[1736825705370,0.4807,3167.7,3167.3,0.4964]
[1736825705570,0.31584,3167.6,3167.3,0.4964]
[1736825706478,0.31583,3167.6,3167.3,0.4964]
[1736825706970,3.2078,3167.9,3167.3,0.4964]
[1736825707171,0.31582,3167.8,3167.4,0.31585]
[1736825707473,0.31582,3167.8,3167.3,0.81226]
[1736825707677,0.31581,3167.9,3167.5,0.31584]
[1736825707977,0.31583,3167.7,3167.3,0.81226]
[1736825708379,3.2078,3167.9,3167.3,0.4964]
[1736825708771,0.31583,3167.7,3167.3,0.81226]
[1736825709079,3.2078,3167.9,3167.8,0.31581]
[1736825709289,0.4963,3168.4,3167.6,3.80942272]
[1736825709577,0.31574,3168.5,3168.1,0.31577]
[1736825709778,3.2078,3168.7,3168.2,0.98]
[1736825709975,3.2078,3168.7,3168.4,0.31575]
[1736825710178,0.31574,3168.6,3168.2,1.29577]
[1736825710378,0.31574,3168.6,3168.3,0.31576]
[1736825710969,0.31575,3168.5,3168.2,0.98]
[1736825711173,3.2078,3168.7,3168.2,0.98]
[1736825711581,0.31575,3168.5,3168.2,1.29577]
[1736825711972,0.31573,3168.6,3168.2,0.98]
[1736825712173,3.2078,3168.7,3168.2,0.98]
[1736825712369,0.31576,3168.3,3168.2,0.98]
[1736825712574,0.31576,3168.3,3168.2,0.4858]
[1736825712776,5.74222272,3168.7,3167.9,3.2078]
[1736825712976,0.31579,3168.0,3167.9,3.2078]
[1736825713881,0.4543,3168.3,3167.9,3.2078]
[1736825714275,0.31579,3168.1,3167.9,3.2078]
[1736825714478,0.31579,3168.1,3167.8,0.31581]
[1736825715179,0.4543,3168.3,3167.8,0.31581]
[1736825715386,0.31578,3168.2,3167.8,0.31581]
[1736825715584,0.31579,3168.1,3167.7,0.77971]
[1736825716073,0.31579,3168.1,3167.8,0.31581]
[1736825716278,0.31579,3168.1,3167.7,0.4639]
[1736825717085,0.31579,3168.1,3167.8,0.31581]
[1736825718381,0.4543,3168.3,3167.7,0.4639]
[1736825718686,0.3158,3168.0,3167.7,0.77972]
[1736825719282,3.6621,3168.3,3167.4,3.6717]
[1736825719283,2.53442272,3168.1,3167.4,3.6717]
[1736825719493,0.31584,3167.5,3167.4,3.6717]
[1736825719982,1.12175514,3168.2,3167.4,3.6717]
[1736825720187,0.31582,3167.8,3167.4,3.98755]
[1736825720387,0.31582,3167.8,3167.5,0.31584]
[1736825720584,0.31581,3167.9,3167.6,0.31583]
[1736825720782,0.31581,3167.9,3167.5,0.31584]
[1736825721592,0.4933,3168.2,3167.4,3.98754]
[1736825721784,0.4933,3168.2,3167.4,3.6717]
[1736825721785,0.31583,3167.7,3167.4,3.6717]
[1736825722088,3.2078,3167.9,3167.4,3.6717]
[1736825722289,0.31584,3167.6,3167.4,3.6717]
[1736825722892,0.31583,3167.7,3167.4,0.77975]
[1736825723787,3.2078,3167.9,3167.2,3.2078]
[1736825723988,5.74222272,3167.9,3167.2,3.2078]
[1736825724290,0.31586,3167.3,3167.2,3.2078]
[1736825727391,0.31586,3167.3,3166.9,0.31589]
[1736825727793,0.31585,3167.4,3167.1,0.31588]
[1736825728086,0.31587,3167.3,3167.0,0.31589]
[1736825728289,0.31587,3167.3,3167.1,0.4988]
[1736825728985,0.958,3167.5,3167.1,0.4988]
[1736825729180,0.31587,3167.3,3167.1,0.4988]
[1736825730090,0.61205896,3167.8,3167.5,0.31584]
[1736825730390,0.31582,3167.8,3167.5,0.31584]
[1736825730587,0.31583,3167.6,3167.3,0.31586]
[1736825730783,0.31585,3167.5,3167.2,1.23577]
[1736825730984,0.31584,3167.6,3167.3,0.31586]
[1736825731196,0.31584,3167.6,3167.4,0.31585]
[1736825731391,0.31586,3167.4,3167.1,3.52368]
[1736825731586,0.4978,3167.5,3166.8,0.9551]
[1736825731791,6.03846168,3167.9,3167.0,3.2078]
[1736825731993,0.31583,3167.6,3167.2,0.31586]
[1736825732292,6.20762272,3167.9,3167.3,0.31586]
[1736825732597,0.31584,3167.6,3167.3,0.31586]
[1736825733189,0.31584,3167.5,3167.4,0.4606]
[1736825733791,0.31588,3167.2,3166.9,0.3159]
[1736825733991,0.31588,3167.2,3166.9,0.7765]
[1736825734997,0.31588,3167.2,3167.0,0.31589]
[1736825735196,3.2078,3167.5,3166.9,0.4606]
[1736825735691,3.2078,3167.5,3166.9,0.7765]
[1736825735898,0.31588,3167.2,3167.0,0.31589]
[1736825737293,3.2078,3167.5,3166.9,0.4606]
[1736825737596,0.31589,3167.0,3166.9,0.4606]
[1736825738303,0.31589,3167.0,3166.6,3.2078]
[1736825738304,0.31592,3166.7,3166.6,3.2078]
[1736825738606,0.9239,3166.9,3166.6,3.2078]
[1736825738901,0.31592,3166.7,3166.6,3.2078]
[1736825740297,0.9239,3166.9,3166.6,3.2078]
[1736825740508,0.31591,3166.9,3166.7,0.31592]
[1736825740699,0.3159,3167.0,3166.7,0.31592]
[1736825740900,0.4689,3167.2,3166.8,0.4977]
[1736825741102,0.31587,3167.3,3167.1,0.31588]
[1736825741500,0.77086,3167.4,3167.2,0.31587]
[1736825741798,0.77086,3167.4,3167.1,0.31588]
[1736825742403,0.31587,3167.3,3167.1,0.31588]
[1736825742603,0.455,3167.4,3166.8,0.9546]
[1736825742804,0.4593,3167.6,3166.8,2.2306]
[1736825742999,0.77514,3167.6,3167.0,3.2078]
[1736825743201,0.77514,3167.6,3167.3,0.31585]
[1736825743609,0.77514,3167.6,3167.3,0.31586]
[1736825744001,0.62934065,3168.1,3167.1,0.4899]
[1736825744312,0.62934065,3168.1,3167.3,0.31586]
[1736825744313,0.31582,3167.7,3167.3,0.31586]
[1736825744597,0.31582,3167.7,3167.1,0.4899]
[1736825744803,0.31582,3167.7,3167.4,0.31585]
[1736825745212,0.31582,3167.8,3167.1,0.4899]
[1736825745400,3.2078,3167.9,3167.1,0.4899]
[1736825745706,0.29623896,3168.2,3167.7,0.31582]
[1736825746003,0.31577,3168.3,3167.8,0.9841]
[1736825746202,0.9384,3168.6,3168.0,0.31578]
[1736825746405,3.2078,3168.3,3167.8,1.2999]
[1736825746605,2.53442272,3168.2,3167.5,1.276]
[1736825746909,0.31583,3167.7,3167.5,1.7709]
[1736825747206,0.31583,3167.7,3167.5,0.4949]
[1736825747402,0.31584,3167.5,3167.3,0.9458]
[1736825747601,0.31584,3167.5,3167.0,1.276]
[1736825748109,0.78834,3167.5,3167.0,1.276]
[1736825748706,0.31591,3166.9,3166.6,0.4544]
[1736825748909,0.31592,3166.7,3166.6,0.4544]
[1736825749210,0.486,3166.8,3166.4,3.6782]
[1736825749506,0.31592,3166.7,3166.4,3.99415]
[1736825749706,0.31592,3166.7,3166.4,3.6782]
[1736825749907,5.74222272,3167.2,3166.4,3.6782]
[1736825750108,0.486,3167.1,3166.4,3.6782]
[1736825750302,0.31593,3166.7,3166.4,3.99415]
[1736825750505,0.31593,3166.7,3166.4,3.6782]
[1736825750702,0.4686,3167.0,3166.4,3.6782]
[1736825750904,0.31591,3166.8,3166.4,3.99414]
[1736825751111,0.31593,3166.7,3166.4,3.6782]
[1736825751311,0.4686,3167.0,3166.4,3.6782]
[1736825751511,0.31591,3166.9,3166.5,0.31594]
[1736825752012,0.31591,3166.9,3166.6,0.31593]
[1736825752405,0.31591,3166.9,3166.4,6.21262272]
[1736825752710,0.31591,3166.9,3166.5,0.31594]
[1736825753412,0.31591,3166.9,3166.4,6.21262272]
[1736825753811,3.2078,3167.2,3166.4,3.6782]
[1736825754013,0.463,3167.1,3166.4,3.6782]
[1736825754214,0.31593,3166.7,3166.4,3.6782]
[1736825754412,0.31594,3166.6,3166.4,3.6782]
[1736825754612,0.31594,3166.6,3166.4,0.4704]
[1736825754808,3.2078,3166.8,3166.4,0.4704]
[1736825755014,0.31593,3166.6,3166.4,0.4704]
[1736825755216,0.31593,3166.7,3166.4,0.78635]
[1736825755514,0.31593,3166.7,3166.4,0.4704]
[1736825755714,0.31591,3166.8,3166.4,0.4704]
[1736825755915,0.31594,3166.6,3166.4,0.4704]
[1736825756317,0.31593,3166.7,3166.4,0.78635]
[1736825756510,0.75923896,3167.1,3166.4,3.6782]
[1736825756711,0.463,3167.1,3166.4,3.6782]
[1736825756920,0.31592,3166.8,3166.4,3.6782]
[1736825757213,0.31592,3166.8,3166.5,0.31594]
[1736825757615,0.31592,3166.8,3166.4,3.6782]
[1736825758007,0.31592,3166.8,3166.5,0.31593]
[1736825759328,3.6708,3167.1,3166.4,3.6782]
[1736825759531,0.3159,3166.9,3166.5,0.31594]
[1736825759828,0.31588,3167.1,3166.9,0.3159]
[1736825760131,0.31588,3167.1,3167.0,0.4945]
[1736825760626,0.31587,3167.2,3166.7,0.31592]
[1736825760831,0.3159,3167.0,3166.7,0.81042]
[1736825761131,0.31589,3167.1,3166.8,0.31591]
[1736825761320,0.4829,3167.3,3166.7,0.4945]
[1736825761526,3.2078,3167.4,3166.9,2.53442272]
[1736825761730,3.2078,3167.4,3167.3,0.31586]
[1736825761927,3.2078,3167.4,3167.0,0.4845]
[1736825762129,3.2078,3167.4,3166.8,1.7437]
[1736825762130,0.31588,3167.1,3166.8,2.05961]
[1736825762330,3.2078,3167.4,3166.8,1.7437]
[1736825762532,3.52366,3167.4,3167.1,0.31588]
[1736825762731,3.52366,3167.4,3166.8,4.27812272]
[1736825762924,3.2078,3167.4,3167.2,0.31587]
[1736825763433,0.08892663,3167.5,3167.4,0.31585]
[1736825763734,0.08892663,3167.5,3167.4,1.24225]
[1736825764533,0.08892663,3167.5,3167.4,3.77667272]
[1736825767338,3.2078,3168.2,3167.4,3.46082272]
[1736825767539,0.4775,3168.5,3168.0,2.53442272]
[1736825767727,3.16335285,3169.0,3168.5,0.31574]
[1736825767728,0.4591,3168.9,3168.5,0.31574]
[1736825767928,0.77481,3168.9,3168.4,0.4567]
[1736825768134,0.4591,3168.9,3168.4,0.4567]
[1736825768639,0.31573,3168.7,3168.4,0.77245]
[1736825769033,0.4591,3168.9,3168.4,0.4567]
[1736825769234,0.77481,3168.9,3168.4,0.4567]
[1736825769444,0.77481,3168.9,3168.6,0.31573]
[1736825769936,0.31572,3168.8,3168.5,0.31574]
[1736825770135,0.77481,3168.9,3168.5,0.31574]
[1736825770343,0.77481,3168.9,3168.6,0.31573]
[1736825770638,0.31572,3168.8,3168.5,0.76554]
[1736825770843,0.31572,3168.7,3168.5,0.4498]
[1736825771540,0.31572,3168.8,3168.5,0.4498]
[1736825771836,0.31573,3168.7,3168.5,0.4498]
[1736825772937,0.4591,3168.9,3168.5,0.4498]
[1736825773137,0.31572,3168.8,3168.5,0.4498]
[1736825773332,0.4591,3168.9,3168.5,0.4498]
[1736825773542,0.4591,3168.9,3168.6,0.31573]
[1736825774043,3.2078,3169.0,3168.5,0.4498]
[1736825774341,3.2078,3169.0,3168.9,0.3157]
[1736825775136,0.4775,3169.2,3168.9,0.3157]
[1736825775337,0.4775,3169.2,3169.0,0.4979]
[1736825776533,0.4775,3169.2,3169.0,0.81359]
[1736825776736,0.4711,3169.3,3169.0,0.4979]
[1736825776945,0.4711,3169.3,3169.0,0.81359]
[1736825777335,0.4711,3169.3,3168.7,0.4831]
[1736825777537,3.00552272,3169.3,3168.2,3.2078]
[1736825777836,2.53442272,3169.0,3168.3,1.278]
[1736825778044,0.4784,3168.9,3168.3,1.278]
[1736825778243,0.4784,3168.9,3168.3,1.59376]
[1736825778438,0.31573,3168.6,3168.3,1.59376]
[1736825778634,0.31572,3168.7,3168.3,1.278]
[1736825778839,0.31574,3168.6,3168.3,1.278]
[1736825779443,3.2078,3168.7,3168.1,2.1822]
[1736825779643,3.2078,3168.7,3168.1,0.9042]
[1736825779943,0.31577,3168.3,3168.1,0.9042]
[1736825780340,3.2078,3168.7,3168.1,0.9042]
[1736825780538,0.31577,3168.2,3168.1,0.9042]
[1736825780843,0.31577,3168.2,3167.9,1.5938]
[1736825781049,0.31577,3168.2,3167.9,2.0866]
[1736825781853,0.31577,3168.2,3168.0,0.31579]
[1736825782848,0.31577,3168.2,3167.9,2.0866]
[1736825783048,3.2078,3168.7,3168.0,0.31579]
[1736825783049,0.31577,3168.3,3168.0,0.31579]
[1736825783239,0.31576,3168.4,3168.1,0.31578]
[1736825783844,3.2078,3168.7,3168.0,2.53442272]
[1736825784040,0.31574,3168.6,3168.3,0.31576]
[1736825784653,3.2078,3168.7,3168.2,0.31577]
[1736825784849,0.31575,3168.5,3168.2,0.31577]
[1736825785556,0.31574,3168.6,3168.3,0.31576]
[1736825785749,3.98492,3168.8,3168.5,0.31574]
[1736825786049,3.2078,3168.8,3168.3,2.53442272]